Cogmind - Beta 10.2 @@@ ROGUE MODE // 2021.04.11 @ 19:46:57 Player: ChromeKnight Result: Destroyed by D-53 Grenadier with Mini Grenade Launcher Performance ------------- Evolutions (0) 0 Regions Visited (4) 800 Robots Destroyed (10) 50 Value Destroyed (385) 385 Prototype IDs (0) 0 Alien Tech Used (0) 0 Bonus (33) 33 TOTAL SCORE: 1268 Bonus ------- Follower Combat Kills 33 Cogmind --------- Core Integrity 0/250 Matter 300/300 Energy 160/160 System Corruption 2% Temperature Cool (0) Movement Walking (120) Location -9/Mines Parts ------- > --- POWER (1) -------- Light Nuclear Core > --- PROPULSION (2) --- Aluminum Leg Aluminum Leg > --- UTILITY (2) ------ Medium Storage Unit Utility Shielding > --- WEAPON (2) ------- Beam Cannon Assault Rifle > --- INVENTORY (8) ---- Hover Unit Hover Unit Improved Heat Sink High-capacity Matter Pod (200) Improved Signal Interpreter Targeting Computer Shield Generator Shield Generator Peak State ------------ > --- POWER ------------ Light Ion Engine > --- PROPULSION ------- Improved Treads Improved Treads > --- UTILITY ---------- Medium Storage Unit Utility Shielding > --- WEAPON ----------- EM Pulse Gun EM Pulse Gun > --- INVENTORY -------- Hover Unit Hover Unit High-capacity Matter Pod Improved Signal Interpreter Shield Generator Shield Generator Assault Rifle [Rating: 10] Favorites ----------- Power Light Nuclear Core Engine Ion Engine Power Core Light Nuclear Core Propulsion Aluminum Leg Treads Improved Treads Leg Aluminum Leg Utility Utility Shielding Storage Medium Storage Unit Protection Utility Shielding Weapon Assault Rifle Energy Gun EM Pulse Gun Energy Cannon Beam Cannon Ballistic Gun Assault Rifle Build | -11 -10 -10 -10 -9 ------- Run | Scr Mat Min Exi Min Slots Evolved . | . . . . . Power . | . . . . . Propulsion . | . . . . . Utility . | . . . . . Weapon . | . . . . . Parts Attached 24 | 6 6 9 . 3 Power 4 | 1 1 2 . . Engine 3 | 1 1 1 . . Core 1 | . . 1 . . Reactor . | . . . . . Propulsion 10 | 2 2 3 . 3 Treads 2 | . 2 . . . Leg 8 | 2 . 3 . 3 Wheel . | . . . . . Hover . | . . . . . Flight . | . . . . . Utility 3 | 1 2 . . . Device . | . . . . . Storage 2 | 1 1 . . . Processor . | . . . . . Hackware . | . . . . . Protection 1 | . 1 . . . Artifact . | . . . . . Weapon 7 | 2 1 4 . . Energy Gun 5 | 2 1 2 . . Energy Cannon 1 | . . 1 . . Ballistic Gun 1 | . . 1 . . Ballistic Cannon . | . . . . . Launcher . | . . . . . Special Weapon . | . . . . . Impact Weapon . | . . . . . Slashing Weapon . | . . . . . Piercing Weapon . | . . . . . Special Melee Weapon . | . . . . . Unidentified Prototypes . | . . . . . Parts Lost 5 | . 2 3 . . Power 1 | . 1 . . . Propulsion . | . . . . . Utility . | . . . . . Weapon 4 | . 1 3 . . Highest Loss Streak 2 | . 2 1 . . Average Slot Usage (%) 96 | . 90 98 100 100 Engine 6 | . 13 5 . . Core 7 | . . 8 14 14 Treads 6 | . 16 2 . . Leg 21 | . 11 25 28 28 Storage 14 | . 14 14 14 14 Protection 13 | . 12 14 14 14 Energy Gun 11 | . 21 12 . . Energy Cannon 5 | . . 3 14 14 Ballistic Gun 7 | . . 9 14 14 Naked Turns . | . . . . . Heaviest Build 19 | 13 18 19 19 19 Greatest Support 46 | 20 46 46 20 20 Greatest Overweight (x) 1 | . 1 1 . . Average Overweight (x) . | . . . . . Largest Inventory Capacity 8 | 6 8 8 8 8 Average Capacity 7 | 5 7 8 8 8 Most Carried 8 | 1 7 8 8 8 Average Carried 6 | . 5 7 8 8 Final Capacity 8 | 6 8 8 8 8 Final Carried 8 | 1 7 8 8 8 Class Distribution -------------------- 76% | Mutant 23% | Scavenger-Mutant Dominant Class ---------------- Mutant | -10/Materials Scavenger-Mutant | -10/Mines Mutant | -10/Exiles Mutant | -9/Mines Resources | -11 -10 -10 -10 -9 ----------- Run | Scr Mat Min Exi Min Matter Collected 672 | 185 103 333 . 51 Remotely . | . . . . . Salvage Created 481 | . 118 264 . 99 Parts 24 | . 6 10 . 8 Haulers Intercepted . | . . . . . Recyclers Shooed . | . . . . . Parts Field Recycled . | . . . . . Retrieved Matter . | . . . . . Parts Self-Destructed . | . . . . . Prevented . | . . . . . Kills | -11 -10 -10 -10 -9 ------- Run | Scr Mat Min Exi Min Combat Hostiles Destroyed 9 | . 2 5 . 2 Guns 6 | . 1 4 . 1 Cannons 1 | . . . . 1 AOE 1 | . 1 . . . Classes Destroyed 3 | . 2 1 . . Watcher 1 | . 1 . . . Grunt 8 | . 2 4 . 2 Sentry 1 | . . 1 . . Best Kill Streak 2 | . 2 2 . 2 Combat Bots Only 2 | . 1 2 . 2 Max Kills in Single Turn 2 | . 2 1 . 1 Gunslinging . | . . . . . Exploded 1 | . 1 . . . Melee . | . . . . . Uniques/NPCs Destroyed . | . . . . . Combat | -11 -10 -10 -10 -9 -------- Run | Scr Mat Min Exi Min Damage Taken 1033 | . 313 505 . 215 Core 256 | . 65 116 . 75 Absorbed by Shields . | . . . . . Core Remaining (%) 100 | 100 . . . . Volleys Fired 57 | . 16 34 . 7 Largest 2 | . 2 2 . 2 Hottest 105 | . 90 105 . 80 Shots Fired 81 | . 26 41 . 14 Gun 74 | . 26 41 . 7 Cannon 7 | . . . . 7 Launcher . | . . . . . Special . | . . . . . Kinetic 19 | . . 12 . 7 Thermal 35 | . 10 18 . 7 Explosive . | . . . . . Electromagnetic 27 | . 16 11 . . Robot Hit Streak 16 | . 6 16 . 3 Robot Miss Streak 4 | . 4 2 . 2 Penetration Max . | . . . . . Secondary Targets 1 | . 1 . . . Max Gunslinging Chain 1 | . 1 . . . Shots Hit Robots 58 | . 19 31 . 8 Core Hits 19 | . 7 8 . 4 Critical Hits . | . . . . . Critical Kills . | . . . . . Critical Parts Destroyed . | . . . . . Melee Attacks . | . . . . . Impact . | . . . . . Slashing . | . . . . . Piercing . | . . . . . Sneak Attacks . | . . . . . Combat Hostiles . | . . . . . Follow-up Attacks . | . . . . . Damage Inflicted 821 | . 300 417 . 104 Guns 684 | . 233 417 . 34 Cannons 70 | . . . . 70 Explosions 67 | . 67 . . . Melee . | . . . . . Ramming . | . . . . . Kinetic 148 | . . 114 . 34 Thermal 380 | . 155 155 . 70 Explosive . | . . . . . Electromagnetic 293 | . 145 148 . . Impact . | . . . . . Slashing . | . . . . . Piercing . | . . . . . Highest Corruption 2 | . 2 2 2 2 Average Corruption 2 | . 2 2 2 2 Corruption Purged . | . . . . . Effects 11 | . 1 9 1 . Message Errors 5 | . 1 4 . . Heat Flow Errors 1 | . . 1 . . Energy Discharges 1 | . . 1 . . Data Loss (minor) 3 | . . 2 1 . Weapon Failures 1 | . . 1 . . Overload Shots . | . . . . . Overflow Damage . | . . . . . Projectiles . | . . . . . Explosions . | . . . . . Melee . | . . . . . Knockbacks . | . . . . . Impact . | . . . . . Kinetic . | . . . . . Secondary . | . . . . . Self-Inflicted Damage . | . . . . . Shots . | . . . . . Rammed . | . . . . . Targets Rammed . | . . . . . Kicked . | . . . . . Crushed . | . . . . . Highest Temperature 360 | . 360 216 . 222 Average Temperature 143 | . 215 103 . 109 Received Heat Transfer 503 | . 177 252 . 74 Effects 4 | . 3 . . 1 Interference 3 | . 2 . . 1 Short Circuit 1 | . 1 . . . Siege Activations . | . . . . . Robots Corrupted 1 | . . 1 . . Combat Hostiles 1 | . . 1 . . Parts Fried 2 | . . 2 . . Impact Corruptions . | . . . . . Robots Melted . | . . . . . Combat Hostiles . | . . . . . Parts Melted 1 | . 1 . . . Heat Transferred 806 | . 309 349 . 148 Parts Sabotaged . | . . . . . Parts Stolen . | . . . . . Parts Stripped . | . . . . . Power Chain Reactions 1 | . 1 . . . Missiles Intercepted . | . . . . . Alert | -11 -10 -10 -10 -9 ------- Run | Scr Mat Min Exi Min Peak Influence 90 | . 52 90 . 56 Initial . | . . . . . Average 39 | . 25 57 . 34 Maximum Alert Level . | . . . . . Low Security (%) 100 | 100 100 100 . 100 Level 1 . | . . . . . Level 2 . | . . . . . Level 3 . | . . . . . Level 4 . | . . . . . Level 5 . | . . . . . High Security . | . . . . . Max Security . | . . . . . Squads Dispatched . | . . . . . Investigation . | . . . . . Extermination . | . . . . . Reinforcement . | . . . . . Assault . | . . . . . Garrison . | . . . . . Intercept . | . . . . . Construction Impeded . | . . . . . Haulers Reinforced . | . . . . . Stealth | -11 -10 -10 -10 -9 --------- Run | Scr Mat Min Exi Min Distress Signals 1 | . 1 . . . Communications Jammed . | . . . . . Distress Signals . | . . . . . Times Spotted 20 | . 4 6 . 10 Peak Tracking Total 10 | . 3 2 . 10 Tactical Retreats 1 | . . . . 1 Traps | -11 -10 -10 -10 -9 ------- Run | Scr Mat Min Exi Min Traps Triggered 1 | . 1 . . . Indirectly . | . . . . . Trap Hack Attempts . | . . . . . Triggered . | . . . . . Disarmed . | . . . . . Reprogrammed . | . . . . . Reused . | . . . . . Traps Extracted . | . . . . . Installed . | . . . . . Triggered 1 | . . . . 1 Machines | -11 -10 -10 -10 -9 ---------- Run | Scr Mat Min Exi Min Machines Disabled . | . . . . . Max in Single Turn . | . . . . . Machines Sabotaged . | . . . . . Garrisons Compromised . | . . . . . Overloaded Fab Kills . | . . . . . Fab Network Shutdowns . | . . . . . Hacking | -11 -10 -10 -10 -9 --------- Run | Scr Mat Min Exi Min Machines Accessed 1 | . . . . 1 Terminals 1 | . . . . 1 Fabricators . | . . . . . Repair Stations . | . . . . . Recycling Units . | . . . . . Scanalyzers . | . . . . . Garrison Access . | . . . . . Total Hacks 1 | . . . . 1 Successful 1 | . . . . 1 Failed . | . . . . . Catastrophic . | . . . . . Database Lockouts . | . . . . . Manual 1 | . . . . 1 Terminals 1 | . . . . 1 Fabricators . | . . . . . Repair Stations . | . . . . . Recycling Units . | . . . . . Scanalyzers . | . . . . . Garrison Access . | . . . . . Terminal Hacks 1 | . . . . 1 Robot Analysis 1 | . . . . 1 Fabricator Hacks . | . . . . . Repair Station Hacks . | . . . . . Recycling Unit Hacks . | . . . . . Scanalyzer . | . . . . . Garrison Access Hacks . | . . . . . Unauthorized Hacks . | . . . . . Terminals . | . . . . . Fabricators . | . . . . . Repair Stations . | . . . . . Recycling Units . | . . . . . Scanalyzers . | . . . . . Garrison Access . | . . . . . Data Cores Recovered . | . . . . . Used . | . . . . . Hacking Detections 1 | . . . . 1 Full Trace Events . | . . . . . Feedback Events . | . . . . . Feedback Blocked . | . . . . . Robot Schematics Acquired . | . . . . . Robots Built . | . . . . . Matter . | . . . . . Time . | . . . . . Total Robot Build Rating . | . . . . . Part Schematics Acquired . | . . . . . Parts Built . | . . . . . Matter . | . . . . . Time . | . . . . . Total Part Build Rating . | . . . . . Parts Repaired . | . . . . . Time . | . . . . . Parts Recycled . | . . . . . Recycled Matter . | . . . . . Retrieved Matter . | . . . . . Retrieved Components . | . . . . . Parts Scanalyzed . | . . . . . Part Schematics Acquired . | . . . . . Parts Damaged . | . . . . . Bothacking | -11 -10 -10 -10 -9 ------------ Run | Scr Mat Min Exi Min Used RIF Installer . | . . . . . Robots Hacked . | . . . . . Non-combat . | . . . . . Combat . | . . . . . Robot Hacks Applied . | . . . . . Relay Couplers Released . | . . . . . Robots Rewired . | . . . . . Allies Hacked . | . . . . . Hacks Repelled . | . . . . . Allies | -11 -10 -10 -10 -9 -------- Run | Scr Mat Min Exi Min Total Allies 2 | . . 2 . . Largest Group 2 | . . 2 1 . Highest-Rated Group 42 | . . 42 31 . Highest-Rated Ally 31 | . . 31 31 . Total Orders . | . . . . . Ally Attacks 10 | . . 10 . . Total Damage 188 | . . 188 . . Kills 1 | . . 1 . . Allies Corrupted . | . . . . . Allies Melted . | . . . . . Intel | -11 -10 -10 -10 -9 ------- Run | Scr Mat Min Exi Min Robot Analysis Total 1 | . . . . 1 Derelict Logs Recovered 1 | . . 1 . . Drone Launches . | . . . . . Drone Recoveries . | . . . . . Exploration | -11 -10 -10 -10 -9 ------------- Run | Scr Mat Min Exi Min Turns Passed 1688 | 55 512 640 243 238 Spaces Moved 1119 | 39 306 435 203 136 Core 2 | 2 . . . . Treads 198 | . 186 12 . . Legs 919 | 37 120 423 203 136 Wheels . | . . . . . Hover . | . . . . . Flight . | . . . . . Fastest Speed 50 | 50 120 120 120 120 Average Speed 127 | 116 146 121 120 120 Slowest Speed 160 | 120 160 160 120 120 Overloaded Moves . | . . . . . Propulsion Burnouts . | . . . . . Robots Hopped . | . . . . . Cave-ins Triggered . | . . . . . Exploration Rate (%) 45 | 4 52 73 60 36 Regions Visited 4 Branch Regions 3 Pre-discovered Areas . | . . . . . Known Exits Taken . | . . . . . Unknown Exits Taken 4 | 1 1 1 1 . Scrap Searched 1 | . . 1 . . Spaces Dug . | . . . . . Terrain Destroyed 3 | . 3 . . . Melee . | . . . . . Projectile . | . . . . . AOE 3 | . 3 . . . Terrain Rammed . | . . . . . Walls Destroyed . | . . . . . Machines Disabled . | . . . . . Actions | -11 -10 -10 -10 -9 --------- Run | Scr Mat Min Exi Min Total 1293 | 45 343 505 202 198 Wait 76 | . 7 20 . 49 Move 1115 | 38 305 434 202 136 Hop . | . . . . . Pick Up 9 | 1 6 2 . . Fast Attach 16 | 6 5 5 . . Attach 1 | . . 1 . . Detach . | . . . . . Swap 7 | . 1 3 . 3 Drop 12 | . 3 6 . 3 Fire 57 | . 16 34 . 7 Melee . | . . . . . Ram . | . . . . . Kick . | . . . . . Crush . | . . . . . Escape Stasis . | . . . . . Rewire . | . . . . . Trap . | . . . . . Miscellaneous . | . . . . . Route ------- -11/Scrapyard -10/Materials (discovered 3 exits: [*Mat x2] / [*Min]) -10/Mines (discovered 2 exits: [*Mat] / [*Exi]) -10/Exiles -9/Mines History --------- Turn | Location | Event 6 | -11/Scrapyard | Discovered new exit (range 15) 56 | -11/Scrapyard | Entered Materials 251 | -10/Materials | Discovered new exit (range 3) 308 | -10/Materials | Build established: Mutant 326 | -10/Materials | Discovered new exit (range 8) 402 | -10/Materials | Discovered new exit (range 15) 568 | -10/Materials | Entered Mines 769 | -10/Mines | Core integrity fell below 50% 876 | -10/Mines | Found a hidden stash of uninstalled traps 893 | -10/Mines | Build established: Scavenger-Mutant 938 | -10/Mines | Discovered new exit (range 11) 1192 | -10/Mines | Deemed a non-threat by the Exiles lab entrance 1192 | -10/Mines | Discovered new exit (range 5) 1208 | -10/Mines | Entered Exiles 1208 | -10/Exiles | Found Exiles lab abandoned 1208 | -10/Exiles | Accompanied by 1 ally 1238 | -10/Exiles | Led the pair of lost Derelicts to a safe place 1294 | -10/Exiles | Build established: Mutant 1441 | -10/Exiles | Discovered new exit (range 10) 1451 | -10/Exiles | Entered Mines 1563 | -9/Mines | Met a Derelict bent on vengeance 1598 | -9/Mines | Assembled infested the area 1683 | -9/Mines | Core integrity fell below 20% 1689 | -9/Mines | Destroyed by D-53 Grenadier with Mini Grenade Launcher Last Messages --------------- S-series swarmers are small with a weak and exposed core, but as such are quick to manufacture and can quickly overwhelm targets with greater numbers and superior speed. The light assault rifle was designed specifically for the S-10 Pest, giving it respectable firepower at a low weight for maintaining high flight speeds. Swarmer squads are particularly susceptible to explosives. 01595_ K-01 Serf collects debris. 01598_ ALERT: Infestation in the mines, dispatching Demolisher response squad. 01599_ K-01 Serf collects debris. 01606_ K-01 Serf cleans the Laser Drill. 01612_ K-01 Serf collects debris. 01620_ K-01 Serf cleans the Laser Drill. 01668_ Acquired 10 matter. 01681_ T-07 Excavator system corrupted by crushing effect. 01682_ T-07 Excavator system terminally corrupted. 01684_ as-12966 destroyed. 01684_ as-48672 destroyed. 01685_ as-06721 destroyed. 01688_ as-06202 destroyed. Map ----- +----------------------------------------------------+ | """ #??????####???????????????????????????????? | | """ #??????# ???????????????????????????????? | | #??????# ???????????????????????????????? | | """ #??????# #???????????????????????????????? | | """ #??????# #???????????????????????????????? | | """ #??????# #???????????????????????????????? | | #??##### ##??????????????????????????????? | | """ #?## #??????????????????????????????? | | """ #?# ##?????????????????????????????? | | """ #??# ###????####???#???????????????? | | ##### ##??## ##? #???????????????? | | """ ## #### ## #???????????????? | | """ ### ## = #???????????????? | | """ #?# #?# %|!%= #???????????????? | | #?# #?# # ### #???????????????? | | """ T## ### #####?### ##???????????????? | | """ ### #???????# #????????????????? | | """ #?##### #???????# d ##???????????????? | | #?????# #?????## #???????????????? | | ########?????# #????# d #???????????????? | | ?????????????# #???# ####????????????? | | ?????????????## #??# #????????????? | | ??????????????## #?# #????????????? | | ???????????????? #?# ## #????????????? | | ???????????????? ## #?? ???????????? | | ???????????????? # @ a #???##??????????? | | ????????????????# # #??????????????? | | ????????????????? %*#### #?????????????? | | ?????????????????# = ???# % %*#?????????????? | | ?????????????????? ? ??????# ##?????????????? | | ????????????????????????????# % ###??????????????? | | ?????????????????????????????#%##????????????????? | | ??????????????????????????????=#?????????????????? | | ??????????????????????????????%*?????????????????? | | ???????????????????????????????##????????????????? | | ?????????????????????????????????????????????????? | | ?????????????????????????????????????????????????? | | ?????????????????????????????????????????????????? | | ?????????????????????????????????????????????????? | | ?????????????????????????????????????????????????? | | ?????????????????????????????????????????????????? | | ?????????????????????????????????????????????????? | | ?????????????????????????????????????????????????? | | ?????????????????????????????????????????????????? | | ?????????????????????????????????????????????????? | | ?????????????????????????????????????????????????? | | ?????????????????????????????????????????????????? | | ?????????????????????????????????????????????????? | | ?????????????????????????????????????????????????? | | ?????????????????????????????????????????????????? | +----------------------------------------------------+ Best States ------------- Heat Dissipation 25 Energy Generation 14 Energy Capacity 250 Matter Stores 300 Matter Capacity 300 Sight Range 16 Terrain Scan Density 10 Utility Shielding 33 Evasion (%) 40 Recoil Reduction 2 Item Schematics ----------------- None Robot Schematics ------------------ None Fabricated ------------ Nothing Alien Tech Used ----------------- None Achievements -------------- None Challenges ------------ None Game ------ Seed MinesnifferFlightFirepult Manual? 0 Play Time 00:07:57 Cumulative 137.0 hours Start 2021.04.11 @ 19:39:26 End 2021.04.11 @ 19:46:57 Sessions 1 Manual Loads 0 Difficulty Rogue Special Mode None Game No. 310 Rogue 157 Adventurer 148 Explorer 5 Win Type - Total 3 Types 3/0/0/0/0/0/0/0/0 Lore% 66 Gallery% 74 Achievement% 57 Wizard Run 0 Options --------- ASCII 0 Keyboard 0 Movement Numpad Keybinds 0 Fullscreen 1 Font 18/CogNarrow Map View 76x50 Tactical HUD 1 Map Filters NONE Filters NONE Steam 1 RUN: d250cac0-db9c-428e-88a1-86a5ab6287b3